[Event "Titled Tuesday Blitz April 4 Late 2023"]
[White "Coelho, Ramyres Santana"]
[Black "Papayan, Oleg"]
[WhiteFideId "2120690"]
[BlackFideId "4193911"]
[WhiteElo "1888"]
[BlackElo "2153"]
[Result "0-1"]
[Round "02"]
[TimeControl "180+2"]
[Date "2023.04.04"]
[WhiteClock "0:00:48"]
[BlackClock "0:00:21"]

1. e4 {[%clk 0:02:59]}  d5 {[%clk 0:02:59]} 2. exd5 {[%clk 0:02:56]}  Qxd5 {[%clk 0:03:00]} 3. Nc3 {[%clk 0:02:57]}  Qa5 {[%clk 0:03:01]} 4. Nf3 {[%clk 0:02:56]}  Nf6 {[%clk 0:03:01]} 5. d4 {[%clk 0:02:57]}  Bf5 {[%clk 0:03:01]} 6. Bd2 {[%clk 0:02:57]}  e6 {[%clk 0:02:47]} 7. Bc4 {[%clk 0:02:52]}  Bb4 {[%clk 0:02:36]} 8. O-O {[%clk 0:02:49]}  Nbd7 {[%clk 0:02:30]} 9. a3 {[%clk 0:02:49]}  Bxc3 {[%clk 0:02:30]} 10. Bxc3 {[%clk 0:02:50]}  Qb6 {[%clk 0:02:30]} 11. a4 {[%clk 0:02:47]}  a5 {[%clk 0:02:29]} 12. Ne5 {[%clk 0:02:46]}  Nxe5 {[%clk 0:02:15]} 13. dxe5 {[%clk 0:02:47]}  Rd8 {[%clk 0:02:16]} 14. Qxd8+ {[%clk 0:02:42]}  Kxd8 {[%clk 0:02:16]} 15. exf6 {[%clk 0:02:43]}  g5 {[%clk 0:02:06]} 16. Rad1+ {[%clk 0:02:40]}  Kc8 {[%clk 0:02:06]} 17. Rd2 {[%clk 0:02:31]}  Rd8 {[%clk 0:01:51]} 18. Rxd8+ {[%clk 0:02:29]}  Kxd8 {[%clk 0:01:52]} 19. Rd1+ {[%clk 0:02:30]}  Kc8 {[%clk 0:01:46]} 20. Bb5 {[%clk 0:02:15]}  c6 {[%clk 0:01:43]} 21. Bf1 {[%clk 0:02:06]}  Bxc2 {[%clk 0:01:40]} 22. Rd2 {[%clk 0:02:05]}  Be4 {[%clk 0:01:33]} 23. Bd4 {[%clk 0:01:54]}  Qb4 {[%clk 0:01:27]} 24. Bc3 {[%clk 0:01:50]}  Qxa4 {[%clk 0:01:21]} 25. Rd4 {[%clk 0:01:50]}  Qc2 {[%clk 0:01:20]} 26. Bxa5 {[%clk 0:01:46]}  Bd5 {[%clk 0:01:20]} 27. Bc3 {[%clk 0:01:34]}  Qc1 {[%clk 0:00:42]} 28. h3 {[%clk 0:01:24]}  e5 {[%clk 0:00:38]} 29. Rxd5 {[%clk 0:01:22]}  cxd5 {[%clk 0:00:38]} 30. Bxe5 {[%clk 0:01:22]}  Kd7 {[%clk 0:00:35]} 31. Bd4 {[%clk 0:01:14]}  Ke6 {[%clk 0:00:32]} 32. f3 {[%clk 0:01:12]}  h5 {[%clk 0:00:31]} 33. Kf2 {[%clk 0:01:12]}  Qc2+ {[%clk 0:00:29]} 34. Be2 {[%clk 0:01:11]}  h4 {[%clk 0:00:29]} 35. Be3 {[%clk 0:01:09]}  Kxf6 {[%clk 0:00:25]} 36. Bd4+ {[%clk 0:01:09]}  Kg6 {[%clk 0:00:24]} 37. Ke3 {[%clk 0:01:09]}  f5 {[%clk 0:00:24]} 38. Bc3 {[%clk 0:01:00]}  Qc1+ {[%clk 0:00:24]} 39. Kf2 {[%clk 0:00:58]}  Qf4 {[%clk 0:00:23]} 40. Bd3 {[%clk 0:00:53]}  d4 {[%clk 0:00:21]} 41. Be1 {[%clk 0:00:50]}  Qe3+ {[%clk 0:00:20]} 42. Kf1 {[%clk 0:00:48]}  Qxd3+ {[%clk 0:00:21]} 43. Kg1 {[%clk 0:00:49]}  b5 {[%clk 0:00:22]} 44. Kh2 {[%clk 0:00:48]}  Qe2 {[%clk 0:00:22]} 45. Bb4 {[%clk 0:00:47]}  Qxb2 {[%clk 0:00:22]} 46. Bd6 {[%clk 0:00:48]}  d3 {[%clk 0:00:21]} 47. Be5 {[%clk 0:00:48]}  Qxe5+ {[%clk 0:00:21]} 48. Kg1 {[%clk 0:00:48]}  Qe1+ {[%clk 0:00:21]} 49. Kh2 {[%clk 0:00:48]}  Qg3+ {[%clk 0:00:20]} 50. Kg1 {[%clk 0:00:48]}  d2 {[%clk 0:00:21]} 51. Kf1 {[%clk 0:00:48]}  d1=Q# {[%clk 0:00:21]} 0-1


[Site "https://www.chess.com"]

[Event "Titled Tuesday Blitz April 4 Late 2023"]
[White "Pires, Marcos Vinicius Torsani"]
[Black "Ward, Ieuan C"]
[WhiteFideId "2118939"]
[BlackFideId "406627"]
[WhiteElo "2273"]
[BlackElo "2268"]
[Result "1-0"]
[Round "02"]
[TimeControl "180+2"]
[Date "2023.04.04"]
[WhiteClock "0:01:32"]
[BlackClock "0:00:39"]

1. d4 {[%clk 0:03:00]}  Nf6 {[%clk 0:02:59]} 2. Bf4 {[%clk 0:03:00]}  d5 {[%clk 0:02:58]} 3. e3 {[%clk 0:03:01]}  e6 {[%clk 0:02:58]} 4. Nf3 {[%clk 0:03:01]}  c5 {[%clk 0:02:59]} 5. c3 {[%clk 0:03:00]}  Bd6 {[%clk 0:02:59]} 6. Bg3 {[%clk 0:03:00]}  Nc6 {[%clk 0:02:59]} 7. Nbd2 {[%clk 0:03:00]}  O-O {[%clk 0:02:59]} 8. Bd3 {[%clk 0:03:00]}  Re8 {[%clk 0:02:59]} 9. Ne5 {[%clk 0:03:00]}  Qc7 {[%clk 0:02:59]} 10. f4 {[%clk 0:02:54]}  a6 {[%clk 0:02:57]} 11. Bh4 {[%clk 0:02:46]}  Nd7 {[%clk 0:02:57]} 12. Bxh7+ {[%clk 0:02:40]}  Kf8 {[%clk 0:02:28]} 13. Bd3 {[%clk 0:02:40]}  Ndxe5 {[%clk 0:02:24]} 14. fxe5 {[%clk 0:02:39]}  Be7 {[%clk 0:02:24]} 15. Bg3 {[%clk 0:02:28]}  g6 {[%clk 0:02:17]} 16. O-O {[%clk 0:02:25]}  Kg7 {[%clk 0:02:17]} 17. Qf3 {[%clk 0:02:21]}  Bg5 {[%clk 0:02:17]} 18. Bf4 {[%clk 0:02:19]}  Bxf4 {[%clk 0:02:08]} 19. Qxf4 {[%clk 0:02:19]}  Qe7 {[%clk 0:01:57]} 20. Rf2 {[%clk 0:02:17]}  cxd4 {[%clk 0:01:54]} 21. exd4 {[%clk 0:02:17]}  Rh8 {[%clk 0:01:46]} 22. Raf1 {[%clk 0:02:15]}  Nd8 {[%clk 0:01:45]} 23. Nf3 {[%clk 0:02:10]}  Bd7 {[%clk 0:01:43]} 24. Ng5 {[%clk 0:02:10]}  Be8 {[%clk 0:01:43]} 25. Qg3 {[%clk 0:02:04]}  Rh5 {[%clk 0:01:39]} 26. Nh3 {[%clk 0:02:00]}  Bb5 {[%clk 0:01:31]} 27. Bxb5 {[%clk 0:01:55]}  axb5 {[%clk 0:01:32]} 28. a3 {[%clk 0:01:56]}  Rf5 {[%clk 0:01:16]} 29. Rxf5 {[%clk 0:01:54]}  exf5 {[%clk 0:01:15]} 30. Rxf5 {[%clk 0:01:54]}  b4 {[%clk 0:01:11]} 31. axb4 {[%clk 0:01:47]}  Ra2 {[%clk 0:01:06]} 32. Rf2 {[%clk 0:01:43]}  Ra1+ {[%clk 0:01:07]} 33. Rf1 {[%clk 0:01:43]}  Ra2 {[%clk 0:01:04]} 34. Qf2 {[%clk 0:01:43]}  Ne6 {[%clk 0:01:02]} 35. Qd2 {[%clk 0:01:39]}  Qh4 {[%clk 0:00:58]} 36. Qf2 {[%clk 0:01:35]}  Qxf2+ {[%clk 0:00:50]} 37. Rxf2 {[%clk 0:01:36]}  Ra1+ {[%clk 0:00:49]} 38. Rf1 {[%clk 0:01:35]}  Ra2 {[%clk 0:00:48]} 39. Rb1 {[%clk 0:01:36]}  f6 {[%clk 0:00:44]} 40. exf6+ {[%clk 0:01:34]}  Kxf6 {[%clk 0:00:45]} 41. Kf2 {[%clk 0:01:34]}  Kf5 {[%clk 0:00:43]} 42. Kf3 {[%clk 0:01:32]}  Ng5+ {[%clk 0:00:41]} 43. Nxg5 {[%clk 0:01:32]}  Kxg5 {[%clk 0:00:42]} 44. g3 {[%clk 0:01:31]}  b5 {[%clk 0:00:41]} 45. h4+ {[%clk 0:01:31]}  Kf5 {[%clk 0:00:39]} 46. g4+ {[%clk 0:01:31]}  Kf6 {[%clk 0:00:40]} 47. Kf4 {[%clk 0:01:32]}  Kf7 {[%clk 0:00:39]} 48. Ke5 {[%clk 0:01:32]} 1-0


[Site "https://www.chess.com"]

[Event "Titled Tuesday Blitz April 4 Late 2023"]
[White "Vemparala, Nikash"]
[Black "Shapiro, Viktor"]
[WhiteFideId "30960967"]
[BlackFideId "4175700"]
[WhiteElo "2023"]
[BlackElo "2152"]
[Result "0-1"]
[Round "02"]
[TimeControl "180+2"]
[Date "2023.04.04"]
[WhiteClock "0:00:01"]
[BlackClock "0:00:29"]

1. e4 {[%clk 0:03:00]}  Nf6 {[%clk 0:03:00]} 2. e5 {[%clk 0:03:00]}  Nd5 {[%clk 0:03:00]} 3. d4 {[%clk 0:03:01]}  d6 {[%clk 0:03:00]} 4. Nf3 {[%clk 0:03:01]}  Bg4 {[%clk 0:03:00]} 5. Be2 {[%clk 0:03:02]}  e6 {[%clk 0:02:59]} 6. O-O {[%clk 0:03:02]}  Be7 {[%clk 0:03:00]} 7. c4 {[%clk 0:03:00]}  Nb6 {[%clk 0:03:00]} 8. Nc3 {[%clk 0:03:01]}  O-O {[%clk 0:02:59]} 9. Be3 {[%clk 0:02:59]}  N8d7 {[%clk 0:02:58]} 10. h3 {[%clk 0:02:46]}  Bxf3 {[%clk 0:02:57]} 11. gxf3 {[%clk 0:02:47]}  dxe5 {[%clk 0:02:57]} 12. dxe5 {[%clk 0:02:38]}  Nxe5 {[%clk 0:02:56]} 13. b3 {[%clk 0:02:34]}  c6 {[%clk 0:02:47]} 14. f4 {[%clk 0:02:32]}  Ng6 {[%clk 0:02:45]} 15. Kh1 {[%clk 0:02:29]}  Qc7 {[%clk 0:02:43]} 16. Qd4 {[%clk 0:02:23]}  Bf6 {[%clk 0:02:39]} 17. Qd2 {[%clk 0:02:18]}  Rad8 {[%clk 0:02:38]} 18. Qc2 {[%clk 0:02:17]}  Nxf4 {[%clk 0:02:38]} 19. Bg4 {[%clk 0:02:07]}  Bd4 {[%clk 0:02:27]} 20. Rad1 {[%clk 0:01:56]}  Bxe3 {[%clk 0:02:23]} 21. fxe3 {[%clk 0:01:57]}  Ng6 {[%clk 0:02:23]} 22. Ne4 {[%clk 0:01:49]}  Qe5 {[%clk 0:02:17]} 23. Rxd8 {[%clk 0:01:27]}  Rxd8 {[%clk 0:02:16]} 24. Bf3 {[%clk 0:01:14]}  f5 {[%clk 0:02:12]} 25. Ng5 {[%clk 0:01:04]}  h6 {[%clk 0:02:09]} 26. Bh5 {[%clk 0:01:00]}  Nh8 {[%clk 0:01:44]} 27. Nf3 {[%clk 0:00:41]}  Qf6 {[%clk 0:01:38]} 28. Qg2 {[%clk 0:00:23]}  g6 {[%clk 0:01:34]} 29. Rg1 {[%clk 0:00:22]}  Kh7 {[%clk 0:01:28]} 30. Nh4 {[%clk 0:00:21]}  Rg8 {[%clk 0:01:26]} 31. Qg3 {[%clk 0:00:14]}  Rg7 {[%clk 0:01:22]} 32. Be2 {[%clk 0:00:13]}  Nd7 {[%clk 0:01:14]} 33. Bd3 {[%clk 0:00:13]}  Ne5 {[%clk 0:01:09]} 34. Bc2 {[%clk 0:00:13]}  Nhf7 {[%clk 0:01:05]} 35. Rf1 {[%clk 0:00:12]}  Qg5 {[%clk 0:01:03]} 36. Qf2 {[%clk 0:00:09]}  Rg8 {[%clk 0:00:55]} 37. Rg1 {[%clk 0:00:08]}  Qf6 {[%clk 0:00:53]} 38. Ng2 {[%clk 0:00:08]}  g5 {[%clk 0:00:48]} 39. Ne1 {[%clk 0:00:08]}  Kh8 {[%clk 0:00:39]} 40. Nf3 {[%clk 0:00:08]}  Nxf3 {[%clk 0:00:39]} 41. Qxf3 {[%clk 0:00:09]}  Qc3 {[%clk 0:00:38]} 42. Qh5 {[%clk 0:00:07]}  Rg7 {[%clk 0:00:34]} 43. Rxg5 {[%clk 0:00:02]}  Rxg5 {[%clk 0:00:28]} 44. Qxf7 {[%clk 0:00:01]}  Qe1+ {[%clk 0:00:29]} 0-1


[Site "https://www.chess.com"]

[Event "Titled Tuesday Blitz April 4 Late 2023"]
[White "Mazurkiewicz, Michal"]
[Black "lluiss"]
[WhiteFideId "1124943"]
[WhiteElo "2054"]
[BlackElo "2250"]
[Result "0-1"]
[Round "02"]
[TimeControl "180+2"]
[Date "2023.04.04"]
[WhiteClock "0:00:05"]
[BlackClock "0:00:09"]

1. e4 {[%clk 0:03:00]}  c5 {[%clk 0:02:59]} 2. Nf3 {[%clk 0:02:59]}  d6 {[%clk 0:02:59]} 3. g3 {[%clk 0:02:59]}  Nf6 {[%clk 0:02:56]} 4. d3 {[%clk 0:02:59]}  g6 {[%clk 0:02:53]} 5. Bg2 {[%clk 0:02:55]}  Bg7 {[%clk 0:02:53]} 6. O-O {[%clk 0:02:54]}  O-O {[%clk 0:02:53]} 7. Re1 {[%clk 0:02:53]}  Nc6 {[%clk 0:02:51]} 8. e5 {[%clk 0:02:49]}  Ng4 {[%clk 0:02:38]} 9. exd6 {[%clk 0:02:49]}  exd6 {[%clk 0:02:37]} 10. h3 {[%clk 0:02:44]}  Nge5 {[%clk 0:02:34]} 11. c3 {[%clk 0:02:44]}  h6 {[%clk 0:02:26]} 12. Nxe5 {[%clk 0:02:36]}  Nxe5 {[%clk 0:02:25]} 13. d4 {[%clk 0:02:36]}  cxd4 {[%clk 0:02:24]} 14. cxd4 {[%clk 0:02:37]}  Nc6 {[%clk 0:02:23]} 15. Be3 {[%clk 0:02:37]}  Bd7 {[%clk 0:02:09]} 16. Nc3 {[%clk 0:02:36]}  Qa5 {[%clk 0:02:02]} 17. a3 {[%clk 0:02:30]}  a6 {[%clk 0:01:55]} 18. b4 {[%clk 0:02:27]}  Qd8 {[%clk 0:01:50]} 19. Rc1 {[%clk 0:02:25]}  Kh7 {[%clk 0:01:48]} 20. Ne4 {[%clk 0:02:04]}  Bf5 {[%clk 0:01:39]} 21. g4 {[%clk 0:01:56]}  Bxe4 {[%clk 0:01:38]} 22. Bxe4 {[%clk 0:01:57]}  Rc8 {[%clk 0:01:37]} 23. Qd3 {[%clk 0:01:44]}  Qd7 {[%clk 0:01:23]} 24. f4 {[%clk 0:01:16]}  d5 {[%clk 0:01:12]} 25. Bf3 {[%clk 0:01:09]}  Ne7 {[%clk 0:01:08]} 26. Rc5 {[%clk 0:01:02]}  b6 {[%clk 0:01:03]} 27. Rxc8 {[%clk 0:00:56]}  Rxc8 {[%clk 0:01:01]} 28. Qxa6 {[%clk 0:00:51]}  Rc3 {[%clk 0:00:54]} 29. Qxb6 {[%clk 0:00:19]}  Rxa3 {[%clk 0:00:53]} 30. Qc5 {[%clk 0:00:18]}  Nc6 {[%clk 0:00:30]} 31. b5 {[%clk 0:00:16]}  Rxe3 {[%clk 0:00:20]} 32. Rxe3 {[%clk 0:00:08]}  Bxd4 {[%clk 0:00:20]} 33. Qxc6 {[%clk 0:00:08]}  Bxe3+ {[%clk 0:00:19]} 34. Kg2 {[%clk 0:00:09]}  Qa7 {[%clk 0:00:13]} 35. Qxd5 {[%clk 0:00:05]}  Bg1 {[%clk 0:00:09]} 36. f5 {[%clk 0:00:04]}  Qf2+ {[%clk 0:00:09]} 37. Kh1 {[%clk 0:00:05]}  Qh2# {[%clk 0:00:09]} 0-1


[Site "https://www.chess.com"]

[Event "Titled Tuesday Blitz April 4 Late 2023"]
[White "Sztokbant, Bernardo Vainzoff"]
[Black "Georg, Heinz"]
[WhiteFideId "2115956"]
[BlackFideId "4607295"]
[WhiteElo "2222"]
[BlackElo "2239"]
[Result "1-0"]
[Round "02"]
[TimeControl "180+2"]
[Date "2023.04.04"]
[WhiteClock "0:00:49"]
[BlackClock "0:00:09"]

1. e4 {[%clk 0:03:00]}  e5 {[%clk 0:02:59]} 2. Nf3 {[%clk 0:02:57]}  Nc6 {[%clk 0:02:59]} 3. d4 {[%clk 0:02:57]}  exd4 {[%clk 0:02:58]} 4. Bc4 {[%clk 0:02:58]}  Bc5 {[%clk 0:02:56]} 5. O-O {[%clk 0:02:55]}  d6 {[%clk 0:02:55]} 6. c3 {[%clk 0:02:55]}  dxc3 {[%clk 0:02:55]} 7. Nxc3 {[%clk 0:02:56]}  Nf6 {[%clk 0:02:54]} 8. Bg5 {[%clk 0:02:54]}  h6 {[%clk 0:02:53]} 9. Bh4 {[%clk 0:02:53]}  Be6 {[%clk 0:02:45]} 10. Bxe6 {[%clk 0:02:44]}  fxe6 {[%clk 0:02:44]} 11. Qb3 {[%clk 0:02:42]}  Qd7 {[%clk 0:02:31]} 12. Rad1 {[%clk 0:02:37]}  O-O {[%clk 0:02:20]} 13. e5 {[%clk 0:02:36]}  Nh5 {[%clk 0:02:11]} 14. Ne4 {[%clk 0:02:28]}  b6 {[%clk 0:01:02]} 15. exd6 {[%clk 0:02:26]}  cxd6 {[%clk 0:01:00]} 16. Rfe1 {[%clk 0:02:19]}  d5 {[%clk 0:00:54]} 17. Nxc5 {[%clk 0:01:29]}  bxc5 {[%clk 0:00:54]} 18. Qe3 {[%clk 0:01:30]}  Rae8 {[%clk 0:00:46]} 19. Qxc5 {[%clk 0:01:29]}  Rxf3 {[%clk 0:00:46]} 20. gxf3 {[%clk 0:01:29]}  g5 {[%clk 0:00:40]} 21. Bg3 {[%clk 0:01:29]}  Ne7 {[%clk 0:00:36]} 22. Qd6 {[%clk 0:01:25]}  Qxd6 {[%clk 0:00:34]} 23. Bxd6 {[%clk 0:01:26]}  Nf5 {[%clk 0:00:34]} 24. Bg3 {[%clk 0:01:26]}  Kf7 {[%clk 0:00:32]} 25. Rc1 {[%clk 0:01:25]}  Re7 {[%clk 0:00:30]} 26. Be5 {[%clk 0:01:21]}  Nh4 {[%clk 0:00:29]} 27. Rc3 {[%clk 0:01:19]}  Nf4 {[%clk 0:00:24]} 28. Bxf4 {[%clk 0:01:18]}  gxf4 {[%clk 0:00:24]} 29. Rec1 {[%clk 0:01:16]}  Kf6 {[%clk 0:00:23]} 30. Kf1 {[%clk 0:01:15]}  Kf5 {[%clk 0:00:21]} 31. Rc7 {[%clk 0:01:14]}  Rxc7 {[%clk 0:00:15]} 32. Rxc7 {[%clk 0:01:14]}  Nxf3 {[%clk 0:00:15]} 33. Rxa7 {[%clk 0:01:13]}  Nxh2+ {[%clk 0:00:15]} 34. Kg2 {[%clk 0:01:13]}  Ng4 {[%clk 0:00:15]} 35. Rh7 {[%clk 0:01:06]}  d4 {[%clk 0:00:14]} 36. a4 {[%clk 0:01:03]}  e5 {[%clk 0:00:10]} 37. a5 {[%clk 0:01:03]}  e4 {[%clk 0:00:10]} 38. a6 {[%clk 0:01:01]}  f3+ {[%clk 0:00:10]} 39. Kg3 {[%clk 0:01:00]}  d3 {[%clk 0:00:10]} 40. Rd7 {[%clk 0:01:00]}  Ne5 {[%clk 0:00:09]} 41. Rd8 {[%clk 0:00:49]} 1-0


[Site "https://www.chess.com"]

[Event "Titled Tuesday Blitz April 4 Late 2023"]
[White "Torres Hernandez, Leslie Carolin"]
[Black "Romero Pallares, Daniel"]
[WhiteFideId "8400504"]
[BlackFideId "32025637"]
[WhiteElo "1920"]
[BlackElo "2195"]
[Result "0-1"]
[Round "02"]
[TimeControl "180+2"]
[Date "2023.04.04"]
[WhiteClock "0:00:06"]
[BlackClock "0:01:10"]

1. e4 {[%clk 0:03:00]}  g6 {[%clk 0:02:57]} 2. d4 {[%clk 0:02:29]}  Bg7 {[%clk 0:02:57]} 3. Nc3 {[%clk 0:02:29]}  d6 {[%clk 0:02:57]} 4. Be3 {[%clk 0:02:29]}  a6 {[%clk 0:02:58]} 5. Qd2 {[%clk 0:02:27]}  b5 {[%clk 0:02:58]} 6. a3 {[%clk 0:02:27]}  Nd7 {[%clk 0:02:56]} 7. Nf3 {[%clk 0:02:27]}  Bb7 {[%clk 0:02:55]} 8. h4 {[%clk 0:02:23]}  h6 {[%clk 0:02:54]} 9. Be2 {[%clk 0:02:12]}  e6 {[%clk 0:02:50]} 10. d5 {[%clk 0:02:07]}  e5 {[%clk 0:02:33]} 11. a4 {[%clk 0:01:45]}  Ngf6 {[%clk 0:02:21]} 12. axb5 {[%clk 0:01:44]}  axb5 {[%clk 0:02:22]} 13. Rxa8 {[%clk 0:01:43]}  Qxa8 {[%clk 0:02:23]} 14. Bxb5 {[%clk 0:01:38]}  Qa1+ {[%clk 0:02:16]} 15. Qc1 {[%clk 0:01:37]}  Qa5 {[%clk 0:02:10]} 16. O-O {[%clk 0:01:34]}  O-O {[%clk 0:02:05]} 17. Bxh6 {[%clk 0:01:29]}  Nc5 {[%clk 0:01:51]} 18. Bxg7 {[%clk 0:01:28]}  Kxg7 {[%clk 0:01:51]} 19. Bd3 {[%clk 0:01:21]}  Qb4 {[%clk 0:01:49]} 20. Re1 {[%clk 0:01:19]}  Ra8 {[%clk 0:01:49]} 21. Ng5 {[%clk 0:01:09]}  Bc8 {[%clk 0:01:45]} 22. f4 {[%clk 0:01:03]}  Ng4 {[%clk 0:01:26]} 23. Nf3 {[%clk 0:00:55]}  Nxd3 {[%clk 0:01:20]} 24. cxd3 {[%clk 0:00:55]}  Qb6+ {[%clk 0:01:20]} 25. Kh1 {[%clk 0:00:19]}  Nf2+ {[%clk 0:01:20]} 26. Kh2 {[%clk 0:00:16]}  Nxd3 {[%clk 0:01:21]} 27. Qd2 {[%clk 0:00:15]}  Nxe1 {[%clk 0:01:18]} 28. Qxe1 {[%clk 0:00:16]}  Bg4 {[%clk 0:01:15]} 29. fxe5 {[%clk 0:00:15]}  Bxf3 {[%clk 0:01:15]} 30. gxf3 {[%clk 0:00:16]}  Qxb2+ {[%clk 0:01:14]} 31. Kg3 {[%clk 0:00:17]}  dxe5 {[%clk 0:01:13]} 32. d6 {[%clk 0:00:12]}  cxd6 {[%clk 0:01:10]} 33. Nd5 {[%clk 0:00:06]}  Ra3 {[%clk 0:01:10]} 0-1


[Site "https://www.chess.com"]

[Event "Titled Tuesday Blitz April 4 Late 2023"]
[White "Srdanovic, Jovana"]
[Black "Santos Flores, Alberto"]
[WhiteFideId "954810"]
[BlackFideId "3601234"]
[WhiteElo "2145"]
[BlackElo "2235"]
[Result "0-1"]
[Round "02"]
[TimeControl "180+2"]
[Date "2023.04.04"]
[WhiteClock "0:00:10"]
[BlackClock "0:01:10"]

1. d4 {[%clk 0:03:00]}  d5 {[%clk 0:02:59]} 2. c4 {[%clk 0:03:00]}  c6 {[%clk 0:02:59]} 3. Nf3 {[%clk 0:02:59]}  Nf6 {[%clk 0:02:59]} 4. Nc3 {[%clk 0:02:59]}  dxc4 {[%clk 0:02:59]} 5. a4 {[%clk 0:02:58]}  Bf5 {[%clk 0:02:59]} 6. Ne5 {[%clk 0:02:58]}  e6 {[%clk 0:02:59]} 7. f3 {[%clk 0:02:53]}  Bb4 {[%clk 0:02:59]} 8. h4 {[%clk 0:02:47]}  c5 {[%clk 0:02:52]} 9. Be3 {[%clk 0:02:24]}  Nd5 {[%clk 0:02:41]} 10. Bd2 {[%clk 0:02:20]}  cxd4 {[%clk 0:02:40]} 11. Nxd5 {[%clk 0:02:15]}  Bxd2+ {[%clk 0:02:40]} 12. Qxd2 {[%clk 0:02:12]}  exd5 {[%clk 0:02:41]} 13. Qxd4 {[%clk 0:02:07]}  Nc6 {[%clk 0:02:41]} 14. Nxc6 {[%clk 0:02:07]}  bxc6 {[%clk 0:02:42]} 15. g4 {[%clk 0:01:52]}  Be6 {[%clk 0:02:39]} 16. Rd1 {[%clk 0:01:43]}  O-O {[%clk 0:02:37]} 17. Kf2 {[%clk 0:01:39]}  Qb6 {[%clk 0:02:36]} 18. e3 {[%clk 0:01:20]}  Qxd4 {[%clk 0:02:36]} 19. exd4 {[%clk 0:01:18]}  Rab8 {[%clk 0:02:35]} 20. Rd2 {[%clk 0:01:17]}  Rb4 {[%clk 0:02:34]} 21. Bh3 {[%clk 0:01:08]}  Rfb8 {[%clk 0:02:33]} 22. Rb1 {[%clk 0:01:05]}  Rxa4 {[%clk 0:02:31]} 23. f4 {[%clk 0:01:04]}  Rab4 {[%clk 0:02:24]} 24. f5 {[%clk 0:01:03]}  Bd7 {[%clk 0:02:24]} 25. Rc2 {[%clk 0:01:01]}  a5 {[%clk 0:02:22]} 26. Ke3 {[%clk 0:00:58]}  a4 {[%clk 0:02:22]} 27. Ra1 {[%clk 0:00:54]}  Rb3+ {[%clk 0:02:18]} 28. Rc3 {[%clk 0:00:49]}  Rxb2 {[%clk 0:01:56]} 29. Rxa4 {[%clk 0:00:45]}  Rh2 {[%clk 0:01:56]} 30. Kf4 {[%clk 0:00:43]}  h6 {[%clk 0:01:56]} 31. Ra7 {[%clk 0:00:43]}  Rb3 {[%clk 0:01:50]} 32. Rxb3 {[%clk 0:00:22]}  cxb3 {[%clk 0:01:51]} 33. Kg3 {[%clk 0:00:23]}  b2 {[%clk 0:01:47]} 34. Kxh2 {[%clk 0:00:15]}  b1=Q {[%clk 0:01:46]} 35. Rxd7 {[%clk 0:00:15]}  Qc2+ {[%clk 0:01:42]} 36. Kg3 {[%clk 0:00:15]}  Qd3+ {[%clk 0:01:42]} 37. Kh2 {[%clk 0:00:15]}  Qxd4 {[%clk 0:01:42]} 38. Rd8+ {[%clk 0:00:16]}  Kh7 {[%clk 0:01:42]} 39. Bg2 {[%clk 0:00:16]}  Qf6 {[%clk 0:01:40]} 40. Rd7 {[%clk 0:00:16]}  Qxh4+ {[%clk 0:01:39]} 41. Kg1 {[%clk 0:00:16]}  Qf6 {[%clk 0:01:27]} 42. Rc7 {[%clk 0:00:14]}  h5 {[%clk 0:01:21]} 43. gxh5 {[%clk 0:00:14]}  Kh6 {[%clk 0:01:21]} 44. Rb7 {[%clk 0:00:12]}  Kxh5 {[%clk 0:01:19]} 45. Rb1 {[%clk 0:00:12]}  Kg5 {[%clk 0:01:16]} 46. Rf1 {[%clk 0:00:12]}  Qe5 {[%clk 0:01:14]} 47. Rf3 {[%clk 0:00:12]}  c5 {[%clk 0:01:13]} 48. Kf2 {[%clk 0:00:11]}  d4 {[%clk 0:01:13]} 49. Rg3+ {[%clk 0:00:12]}  Kf6 {[%clk 0:01:12]} 50. Bh3 {[%clk 0:00:13]}  c4 {[%clk 0:01:12]} 51. Ra3 {[%clk 0:00:12]}  d3 {[%clk 0:01:11]} 52. Ra6+ {[%clk 0:00:13]}  Kg5 {[%clk 0:01:10]} 53. Ra3 {[%clk 0:00:12]}  Qc5+ {[%clk 0:01:10]} 54. Kf3 {[%clk 0:00:10]} 0-1


[Site "https://www.chess.com"]

[Event "Titled Tuesday Blitz April 4 Late 2023"]
[White "Silva, Pedro Gil Ferreira Da"]
[Black "MClarke95"]
[WhiteFideId "1946102"]
[WhiteElo "2255"]
[BlackElo "2184"]
[Result "1-0"]
[Round "02"]
[TimeControl "180+2"]
[Date "2023.04.04"]
[WhiteClock "0:01:29"]
[BlackClock "0:00:14"]

1. c4 {[%clk 0:03:00]}  e6 {[%clk 0:02:56]} 2. Nf3 {[%clk 0:03:01]}  d5 {[%clk 0:02:56]} 3. g3 {[%clk 0:03:02]}  Nf6 {[%clk 0:02:55]} 4. Bg2 {[%clk 0:03:02]}  d4 {[%clk 0:02:53]} 5. O-O {[%clk 0:03:00]}  c5 {[%clk 0:02:54]} 6. e3 {[%clk 0:03:00]}  Nc6 {[%clk 0:02:53]} 7. exd4 {[%clk 0:02:59]}  cxd4 {[%clk 0:02:53]} 8. d3 {[%clk 0:03:00]}  Be7 {[%clk 0:02:51]} 9. a3 {[%clk 0:02:57]}  a5 {[%clk 0:02:50]} 10. Re1 {[%clk 0:02:57]}  O-O {[%clk 0:02:50]} 11. Bg5 {[%clk 0:02:51]}  Nd7 {[%clk 0:01:58]} 12. Bxe7 {[%clk 0:02:43]}  Qxe7 {[%clk 0:01:59]} 13. Nbd2 {[%clk 0:02:44]}  Nc5 {[%clk 0:01:57]} 14. Qe2 {[%clk 0:02:42]}  Rd8 {[%clk 0:01:50]} 15. Rab1 {[%clk 0:02:41]}  a4 {[%clk 0:01:50]} 16. Ne4 {[%clk 0:02:39]}  Bd7 {[%clk 0:01:26]} 17. Nxc5 {[%clk 0:02:29]}  Qxc5 {[%clk 0:01:26]} 18. Ne5 {[%clk 0:02:29]}  Be8 {[%clk 0:01:23]} 19. h4 {[%clk 0:02:23]}  Na5 {[%clk 0:01:13]} 20. h5 {[%clk 0:02:19]}  h6 {[%clk 0:01:10]} 21. Qg4 {[%clk 0:02:09]}  Ra6 {[%clk 0:01:07]} 22. f4 {[%clk 0:02:02]}  Nc6 {[%clk 0:00:35]} 23. Qh4 {[%clk 0:01:57]}  f6 {[%clk 0:00:31]} 24. Ng6 {[%clk 0:01:54]}  Bf7 {[%clk 0:00:26]} 25. Bh3 {[%clk 0:01:50]}  Ne7 {[%clk 0:00:22]} 26. Nxe7+ {[%clk 0:01:43]}  Qxe7 {[%clk 0:00:23]} 27. Bf5 {[%clk 0:01:42]}  Qc5 {[%clk 0:00:17]} 28. Bg4 {[%clk 0:01:37]}  Rb6 {[%clk 0:00:17]} 29. Re2 {[%clk 0:01:36]}  Rdd6 {[%clk 0:00:15]} 30. Rbe1 {[%clk 0:01:34]}  f5 {[%clk 0:00:14]} 31. Bf3 {[%clk 0:01:33]}  Rb3 {[%clk 0:00:14]} 32. Re5 {[%clk 0:01:29]}  Qb6 {[%clk 0:00:14]} 33. c5 {[%clk 0:01:29]} 1-0


[Site "https://www.chess.com"]